bitfinex/quotes_ETHUSD_20220213
["timestamp","ask_amount","ask_price","bid_price","bid_amount"]
[1644752377844,0.06628327,2943.4,2943.1,1.50947]
[1644752378042,0.06628327,2943.4,2943.2,3.5]
[1644752378310,0.06628327,2943.4,2943.2,0.3]
[1644752378442,0.06628327,2943.4,2943.3,1.0]
[1644752378649,0.06628327,2943.4,2943.3,0.47209129]
[1644752378840,0.06628327,2943.4,2943.3,0.17209129]
[1644752379098,0.06628327,2943.4,2943.3,0.47209129]
[1644752379996,0.06628327,2943.4,2943.3,3.9303141]
[1644752380202,0.06628327,2943.4,2943.3,4.9303141]
[1644752380601,0.06628327,2943.4,2943.3,1.47209129]
[1644752380803,0.06628327,2943.4,2943.3,0.64189129]
[1644752381017,0.06628327,2943.4,2943.3,0.51120321]
[1644752381611,0.06628327,2943.4,2943.3,3.86987394]
[1644752382200,0.06628327,2943.4,2943.3,4.46987394]
[1644752382837,0.06628327,2943.4,2943.3,5.46987394]
[1644752383053,3.46628327,2943.4,2943.3,5.46987394]
[1644752386132,3.48225845,2943.4,2943.3,5.46987394]
[1644752390252,0.01599724,2943.7,2943.4,4.4]
[1644752390563,0.01599724,2943.7,2943.6,3.52075676]
[1644752390657,0.01599724,2943.7,2943.6,4.12075676]
[1644752390863,0.01599724,2943.7,2943.6,5.97531226]
[1644752391058,0.00508824,2943.7,2943.6,5.97531226]
[1644752391456,0.00508824,2943.7,2943.6,5.12075676]
[1644752394894,3.40508824,2943.7,2943.6,5.12075676]
[1644752395204,3.40508824,2943.7,2943.6,1.6]
[1644752395390,3.40508824,2943.7,2943.6,0.6]
[1644752395594,3.40508824,2943.7,2943.6,0.3]
[1644752395806,3.40508824,2943.7,2943.4,4.59358049]
[1644752395992,3.44241271,2943.7,2943.5,37.0]
[1644752396191,3.44241271,2943.7,2943.6,3.01655013]
[1644752396391,3.44241271,2943.7,2943.3,2.20927321]
[1644752396592,3.44241271,2943.7,2943.4,3.04653663]
[1644752397192,3.45332211,2943.7,2943.4,39.34653663]
[1644752397392,3.45332211,2943.7,2943.5,1.0]
[1644752397595,3.45332211,2943.7,2943.6,3.03807645]
[1644752397853,3.45332211,2943.7,2943.6,4.3236285]
[1644752398058,3.45332211,2943.7,2943.6,0.3]
[1644752398245,3.44241271,2943.7,2943.2,0.1698]
[1644752398440,4.20721271,2943.7,2943.2,0.50980991]
[1644752399054,0.84678918,2943.6,2943.2,0.50980991]
[1644752399445,0.84678918,2943.6,2943.2,0.80980991]
[1644752399646,3.45332181,2943.7,2943.2,0.50980991]
[1644752400646,3.44241271,2943.7,2943.2,0.50980991]
[1644752400856,3.45332191,2943.7,2943.2,0.80980991]
[1644752401245,3.45332191,2943.7,2943.2,1.10980991]
[1644752401509,3.45332191,2943.7,2943.2,0.50980991]
[1644752401791,1.44513035,2943.6,2943.2,0.50980991]
[1644752402391,0.97835865,2943.4,2943.2,0.50980991]
[1644752402791,0.97835865,2943.4,2943.2,1.10980991]
[1644752403198,3.44834791,2943.7,2943.2,1.10980991]
[1644752404004,3.44834791,2943.7,2943.2,1.27967991]
[1644752404197,3.44241271,2943.7,2943.2,1.27967991]
[1644752404595,3.44834821,2943.7,2943.2,1.27967991]
[1644752405446,3.44834821,2943.7,2943.2,1.10980991]
[1644752405447,3.44241271,2943.7,2943.2,1.10980991]
[1644752405644,3.45332684,2943.7,2943.2,1.10980991]
[1644752406646,3.44241271,2943.7,2943.2,1.10980991]
[1644752406849,3.45270965,2943.7,2943.2,1.10980991]
[1644752407915,3.44241271,2943.7,2943.2,1.10980991]
[1644752408048,1.05276444,2943.4,2943.2,1.10980991]
[1644752408448,3.45270965,2943.7,2943.2,1.10980991]
[1644752409012,3.44241271,2943.7,2943.2,1.10980991]
[1644752409199,3.45270965,2943.7,2943.2,1.10980991]
[1644752409390,0.97796381,2943.6,2943.2,1.10980991]
[1644752410392,0.97796381,2943.6,2943.2,0.80980991]
[1644752410594,0.97796381,2943.6,2943.2,0.50980991]
[1644752411236,0.97796381,2943.6,2943.2,0.80980991]
[1644752411591,0.97796381,2943.6,2943.2,1.10980991]
[1644752411807,0.97796381,2943.6,2943.2,0.80980991]
[1644752412839,0.97796381,2943.6,2943.2,1.10980991]
[1644752414844,0.97796381,2943.6,2943.2,0.80980991]
[1644752415055,0.97796381,2943.6,2943.2,0.50980991]
[1644752416504,0.97796381,2943.6,2943.2,0.80980991]
[1644752416691,3.4527484,2943.7,2943.2,1.10980991]
[1644752416891,3.4527484,2943.7,2943.3,0.1698]
[1644752417191,3.4527484,2943.7,2943.2,1.10980991]
[1644752417692,4.63754004,2943.7,2943.2,1.10980991]
[1644752418290,4.63754004,2943.7,2943.2,0.3]
[1644752418492,5.0,2943.6,2942.7,0.1698]
[1644752418692,1.0,2943.6,2942.7,0.1698]
[1644752419316,5.0,2943.5,2942.7,0.1698]
[1644752419502,1.0311446,2942.9,2942.7,0.1698]
[1644752419698,1.0311446,2942.9,2942.6,0.01034001]
[1644752419897,1.0311446,2942.9,2942.4,0.80221723]
[1644752420348,1.0311446,2942.9,2942.6,0.0103387]
[1644752421143,6.42058144,2943.6,2942.4,1.10221723]
[1644752421451,6.42058144,2943.6,2942.6,0.0103386]
[1644752421844,5.42058144,2943.6,2942.6,0.0103386]
[1644752422063,3.10756609,2943.6,2942.6,0.0103386]
[1644752422243,1.00078864,2943.5,2942.7,0.1698]
[1644752422452,1.44536194,2943.4,2942.6,0.1698]
[1644752422649,1.44536194,2943.4,2942.6,0.01033933]
[1644752423572,1.44536194,2943.4,2942.4,1.10221723]
[1644752423744,0.91803832,2943.0,2942.6,0.01033913]
[1644752424394,1.1457,2943.3,2942.6,0.01033913]
[1644752424603,1.1457,2943.3,2942.4,1.10221723]
[1644752424604,1.44542473,2943.2,2942.4,1.10221723]
[1644752424990,1.44542473,2943.2,2942.6,0.01033903]
[1644752425793,1.1457,2943.3,2942.6,0.01033903]
[1644752425794,1.1457,2943.3,2942.7,0.1698]
[1644752425995,1.1457,2943.3,2942.7,3.23554844]
[1644752426191,1.1457,2943.3,2942.7,3.81272592]
[1644752426413,1.1457,2943.3,2942.8,1.0]
[1644752426600,0.0372077,2943.5,2942.9,0.1698]
[1644752426601,1.09576889,2943.5,2942.9,0.1698]
[1644752426796,1.44376125,2943.4,2942.9,0.1698]
[1644752426995,1.44376125,2943.4,2942.8,0.1698]
[1644752428709,4.84376125,2943.4,2942.8,0.1698]
[1644752428848,3.4,2943.4,2942.8,0.1698]
[1644752429049,3.4,2943.4,2942.8,0.3]
[1644752429264,3.4,2943.4,2942.6,0.31033932]
[1644752429478,3.4,2943.4,2942.6,0.3]
[1644752429851,3.4,2943.4,2942.6,0.01033931]
[1644752430675,3.4,2943.4,2942.5,5.0962]
[1644752430853,3.4,2943.4,2942.6,0.01033911]
[1644752431915,3.4,2943.4,2942.5,8.11642821]
[1644752432107,3.4,2943.4,2942.6,0.18013911]
[1644752433135,3.4,2943.4,2942.6,0.1698]
[1644752433294,3.4,2943.4,2942.6,0.18013912]
[1644752434097,1.0329093,2943.1,2942.6,0.18013912]
[1644752434310,1.0329093,2943.1,2942.6,0.1698]
[1644752434498,1.0329093,2943.1,2942.6,0.18013912]
[1644752435100,3.4,2943.4,2942.6,0.18013912]
[1644752435543,3.4,2943.4,2942.6,0.1698]
[1644752435742,3.4,2943.4,2942.6,0.18013912]
[1644752435743,3.43714931,2943.4,2942.6,0.18013912]
[1644752436143,4.48128152,2943.4,2942.6,0.18013912]
[1644752436343,4.48128152,2943.4,2942.6,0.01033912]
[1644752436654,4.48128152,2943.4,2942.6,1.0]
[1644752436843,4.48128152,2943.4,2942.7,3.01670437]
[1644752437043,4.48128152,2943.4,2942.7,3.31670437]
[1644752437247,3.43714931,2943.4,2942.7,3.61670437]
[1644752439292,3.43714931,2943.4,2942.7,0.3]
[1644752439495,3.43714931,2943.4,2942.6,0.31033922]
[1644752440295,3.43714931,2943.4,2942.6,0.3]
[1644752440595,3.43714931,2943.4,2942.6,0.01033911]
[1644752441394,3.43714931,2943.4,2942.5,7.12975465]
[1644752441794,3.43714931,2943.4,2942.6,0.01033911]
[1644752442594,3.43714931,2943.4,2942.5,7.12975465]
[1644752442850,3.43714931,2943.4,2942.6,0.01033911]
[1644752443842,3.43714931,2943.4,2942.5,7.12975465]
[1644752444044,3.43714931,2943.4,2942.6,0.01033911]
[1644752445047,3.43714931,2943.4,2942.5,7.12975465]
[1644752445397,3.43714931,2943.4,2942.6,0.01033911]
[1644752445547,3.43714931,2943.4,2942.7,0.1698]
[1644752446246,3.43714931,2943.4,2942.7,3.28064179]
[1644752446506,3.43714931,2943.4,2942.7,3.58064179]
[1644752446692,3.43714931,2943.4,2942.7,3.88064179]
[1644752446899,1.44535514,2943.3,2942.7,3.71084179]
[1644752447700,1.44535514,2943.3,2942.7,0.6]
[1644752447919,1.44535514,2943.3,2942.7,0.3]
[1644752448091,1.44535514,2943.3,2942.6,0.48013911]
[1644752448294,1.44535514,2943.3,2942.6,0.18013911]
[1644752448706,1.44535514,2943.3,2942.6,0.1698]
[1644752448891,1.44535514,2943.3,2942.6,0.18013901]
[1644752449900,1.44535514,2943.3,2942.6,0.1698]
[1644752450100,1.44535514,2943.3,2942.6,0.18013901]
[1644752451146,1.44535514,2943.3,2942.6,0.1698]
[1644752451344,1.44535514,2943.3,2942.6,0.01033901]
[1644752451752,1.11892617,2943.0,2942.6,0.01033901]
[1644752451944,1.44535514,2942.9,2942.6,0.01033901]
[1644752452345,1.44535514,2942.9,2942.5,0.7698]
[1644752452544,1.44535514,2942.9,2942.6,0.01033861]
[1644752453544,1.44535514,2942.9,2942.5,0.7698]
[1644752453751,1.44535514,2942.9,2942.6,0.01033861]
[1644752454595,1.44535514,2942.9,2942.5,0.4698]
[1644752455094,1.44535514,2942.9,2942.6,0.01033862]
[1644752455901,1.44535514,2942.9,2942.5,0.4698]
[1644752456098,1.48227085,2942.9,2942.6,0.01033862]
[1644752456304,1.44535514,2942.8,2942.6,0.01033862]
[1644752457102,1.44535514,2942.8,2942.5,3.48109472]
[1644752457300,1.44535514,2942.8,2942.6,0.01033852]
[1644752458445,1.44535514,2942.8,2942.6,0.01035529]
[1644752459446,1.44535514,2942.8,2942.5,0.4698]
[1644752459646,1.44535514,2942.8,2942.6,0.01035529]
[1644752459849,1.44535514,2942.8,2942.6,0.16603965]
[1644752460654,1.44535514,2942.8,2942.6,0.15568436]
[1644752460854,1.44535514,2942.8,2942.6,0.16011302]
[1644752461893,1.44535514,2942.8,2942.6,0.15568436]
[1644752462089,1.44535514,2942.8,2942.6,0.16604326]
[1644752462503,4.84535514,2942.8,2942.6,0.16604326]
[1644752462790,1.44535514,2942.7,2942.6,0.16604326]
[1644752462990,1.44535514,2942.7,2942.6,0.15568436]
[1644752463992,1.44535514,2942.7,2942.6,3.14652712]
[1644752464790,1.44535514,2942.7,2942.6,0.15568436]
[1644752466245,3.4368573,2942.8,2942.6,0.15568436]
[1644752466847,3.4368573,2942.8,2942.6,0.16610709]
[1644752467846,3.4368573,2942.8,2942.6,0.15568436]
[1644752468045,3.4368573,2942.8,2942.6,0.16610709]
[1644752469006,3.4368573,2942.8,2942.6,1.10699257]
[1644752469007,3.43596308,2942.8,2942.6,1.10699257]
[1644752469204,3.43596308,2942.8,2942.7,3.85629851]
[1644752469400,3.43596308,2942.8,2942.7,5.32609851]
[1644752473343,3.25847816,2942.8,2942.7,5.32609851]
[1644752473547,3.25847816,2942.8,2942.7,5.62609851]
[1644752477092,3.25847816,2942.8,2942.7,5.45629851]
[1644752478696,3.25847816,2942.8,2942.7,1.6]
[1644752480845,3.25847816,2942.8,2942.7,1.62760142]
[1644752484792,3.25847816,2942.8,2942.7,1.62615527]
[1644752484991,3.25847816,2942.8,2942.7,2.47549527]
[1644752487008,3.03042094,2942.8,2942.7,2.47549527]
[1644752487302,0.01043648,2943.7,2943.0,0.16986]
[1644752487748,1.44511535,2943.6,2943.2,0.84926]
[1644752487945,0.01043648,2943.7,2943.2,2.59658703]
[1644752488153,0.01043648,2943.7,2943.2,2.44926]
[1644752488344,0.00508824,2943.7,2943.2,2.44926]
[1644752488550,0.01043775,2943.7,2943.2,2.44926]
[1644752489346,0.01043775,2943.7,2943.3,1.019]
[1644752489549,0.00508824,2943.7,2943.3,1.319]
[1644752489746,0.01067549,2943.7,2943.3,1.319]
[1644752490162,0.01067549,2943.7,2943.3,0.3]
[1644752490553,0.01067549,2943.7,2943.2,0.84075713]
[1644752490773,0.00508824,2943.7,2943.2,0.84075713]
[1644752490954,0.01565915,2943.7,2943.2,0.84075713]
[1644752491801,0.01565915,2943.7,2943.2,1.14075713]
[1644752491995,0.00508824,2943.7,2943.3,0.3]
[1644752492197,0.01565905,2943.7,2943.3,0.3]
[1644752492989,1.2196,2944.4,2943.3,4.25]
[1644752493189,1.44505289,2944.3,2943.3,0.3]
[1644752493391,0.01030768,2943.7,2943.3,0.3]
[1644752494399,1.1257723,2944.1,2943.3,0.3]
[1644752494592,1.44504703,2944.0,2943.3,0.3]
[1644752495748,1.44504703,2944.0,2943.5,0.00502884]
[1644752496374,4.4,2943.8,2943.0,2.33330769]
[1644752496555,4.4,2943.8,2943.0,0.02011867]
[1644752496556,4.94504703,2943.7,2943.0,0.02011867]
[1644752496766,0.01227046,2943.5,2942.7,0.00392089]
[1644752496949,6.44504703,2943.4,2942.7,0.00392089]
[1644752497149,1.44504703,2943.3,2942.7,0.00392089]
[1644752497355,2.44504703,2943.3,2942.7,0.00392089]
[1644752497567,0.96373203,2943.0,2942.7,0.00392089]
[1644752497752,1.44548879,2942.9,2942.7,0.00392089]
[1644752499497,1.44548879,2942.9,2942.7,0.00895118]
[1644752499700,3.29376178,2943.3,2942.7,0.00895118]
[1644752499893,1.44547641,2943.2,2942.7,0.00895118]
[1644752500096,1.44547641,2943.1,2942.7,0.00895118]
[1644752500303,1.44547641,2943.0,2942.7,0.00392089]
[1644752500498,4.6054039,2943.4,2942.8,0.0109323]
[1644752500738,2.48342162,2943.3,2942.8,0.0109323]
[1644752500907,1.44547252,2943.2,2942.8,0.0109323]
[1644752501501,1.44547252,2943.2,2942.7,0.00392089]
[1644752501798,1.44547252,2943.2,2942.9,0.01093221]
[1644752502745,1.44547252,2943.2,2942.7,0.00392089]
[1644752502946,1.44547252,2943.2,2942.9,0.01093213]
[1644752503952,1.44547252,2943.2,2942.7,0.00392089]
[1644752504264,4.54122293,2943.1,2942.9,0.01093213]
[1644752504466,4.83893106,2943.0,2942.9,0.01093213]
[1644752504658,1.44547252,2943.0,2942.9,0.01093213]
[1644752505092,1.44547252,2943.0,2942.7,0.00392089]
[1644752505354,1.44547252,2943.0,2942.8,0.0109323]
[1644752506265,1.44547252,2943.0,2942.7,0.00392089]
[1644752506510,1.44547252,2943.0,2942.8,0.01093238]
[1644752506905,0.02680903,2943.1,2942.8,0.01093238]
[1644752507497,0.02680903,2943.1,2942.7,0.00392089]
[1644752507798,0.02680903,2943.1,2942.8,0.0109323]
[1644752508010,3.4,2943.0,2942.8,0.1807323]
[1644752508803,3.4,2943.0,2942.8,0.1698]
[1644752509004,3.4,2943.0,2942.8,0.18073238]
[1644752510006,3.4,2943.0,2942.8,0.1698]
[1644752510244,3.4,2943.0,2942.8,0.18073238]
[1644752510650,3.42677037,2943.0,2942.8,0.18073238]
[1644752511151,3.42677037,2943.0,2942.8,0.1698]
[1644752511354,3.42677037,2943.0,2942.8,0.18073238]
[1644752511355,2.39098473,2942.9,2942.8,0.18073238]
[1644752511767,2.39098473,2942.9,2942.8,0.01093238]
[1644752511960,0.94545622,2942.9,2942.8,0.01093238]
[1644752512151,2.39094921,2942.9,2942.8,0.01093238]
[1644752512357,2.39094921,2942.9,2942.7,0.00392089]
[1644752512556,2.39094921,2942.9,2942.7,0.01485336]
[1644752512557,4.77757523,2942.8,2942.7,0.01485336]
[1644752512767,1.44549299,2942.8,2942.7,0.01485336]
[1644752513051,4.76283779,2942.8,2942.7,0.01485336]
[1644752513477,4.76283779,2942.8,2942.7,0.00392089]
[1644752513652,4.76283779,2942.8,2942.6,0.15568436]
[1644752513855,1.44549299,2942.7,2942.6,0.166617]
[1644752514101,1.44549299,2942.8,2942.6,0.166617]
[1644752514301,1.44549299,2942.8,2942.6,0.17053789]
[1644752514505,1.44549299,2942.8,2942.6,0.166617]
[1644752514700,1.44549299,2942.8,2942.6,0.15568436]
[1644752514905,1.44549299,2942.8,2942.6,0.16661708]
[1644752515926,1.44549299,2942.8,2942.6,0.15568436]
[1644752516105,1.44549299,2942.8,2942.6,0.16661708]
[1644752517105,1.44549299,2942.8,2942.6,0.15568436]
[1644752517306,1.44549299,2942.8,2942.6,0.16661708]
[1644752517770,1.00084003,2942.9,2942.6,0.16661708]
[1644752517946,1.44560649,2942.8,2942.6,0.17053797]
[1644752518146,1.44560649,2942.8,2942.6,0.16661708]
[1644752518346,1.00084003,2942.9,2942.6,0.15568436]
[1644752518557,1.00084003,2942.9,2942.6,0.17053797]
[1644752519052,0.05538381,2942.9,2942.6,0.17053797]
[1644752519449,0.05538381,2942.9,2942.6,0.15960525]
[1644752519849,0.05538381,2942.9,2942.6,0.17053789]
[1644752520074,0.05442438,2942.9,2942.6,0.17053789]
[1644752520754,0.05442438,2942.9,2942.6,0.15960525]
[1644752520957,0.05442438,2942.9,2942.6,0.17053789]
[1644752521150,0.02683398,2942.7,2942.6,0.17053789]
[1644752521348,0.02683398,2942.7,2942.6,0.166617]
[1644752521999,0.02683398,2942.7,2942.6,0.15568436]
[1644752525667,0.02862417,2942.7,2942.6,0.15568436]
[1644752526856,1.47427468,2942.7,2942.6,0.15568436]
[1644752528158,4.4,2942.5,2942.1,0.04765869]
[1644752528377,4.4,2942.6,2942.1,0.0437378]
[1644752528378,5.0,2942.2,2942.1,0.0437378]
[1644752528557,5.0,2942.2,2941.9,0.00392089]
[1644752528558,1.44565051,2942.2,2941.9,0.00392089]
[1644752528771,1.61545051,2942.2,2941.7,0.00392089]
[1644752529004,1.61545051,2942.2,2941.3,0.00392089]
[1644752529005,2.53740516,2942.1,2941.3,0.00392089]
[1644752529196,1.09956645,2941.5,2941.3,0.00392089]
[1644752529405,1.2342,2942.1,2941.2,0.60474911]
[1644752529614,1.2342,2942.1,2941.3,0.00392089]
[1644752529813,1.2342,2942.1,2941.3,0.30392089]
[1644752530901,0.96407638,2941.8,2941.3,0.30392089]
[1644752531100,0.96407638,2941.8,2941.4,0.1698]
[1644752532200,1.2342,2942.1,2941.4,0.1698]
[1644752532410,1.2342,2942.1,2941.5,0.00392089]
[1644752532650,1.2342,2942.1,2941.6,0.1698]
[1644752532848,1.2342,2942.1,2941.6,0.17372089]
[1644752533048,1.2342,2942.1,2941.7,0.01094019]
[1644752533245,1.03282863,2942.0,2941.7,0.01486108]
[1644752533450,1.03282863,2942.0,2941.7,0.01094019]
[1644752534064,1.03282863,2942.0,2941.4,0.30392089]
[1644752534264,1.03282863,2942.0,2941.7,0.01094011]
[1644752535245,1.03282863,2942.0,2941.4,0.00392089]
[1644752535451,1.03282863,2942.0,2941.7,0.01094011]
[1644752536073,0.01415903,2941.8,2941.7,0.01094011]
[1644752536262,0.01415903,2941.8,2941.4,0.00392089]
[1644752536517,0.01415903,2941.8,2941.6,0.01094028]
[1644752537501,0.01415903,2941.8,2941.4,0.00392089]
[1644752538017,0.01415903,2941.8,2941.6,0.01094036]
[1644752538399,0.01415903,2941.8,2941.2,0.00392089]
[1644752538601,0.01415903,2941.8,2940.7,0.1699]
[1644752538802,3.49508546,2941.8,2940.6,0.1698]
[1644752539000,1.228,2941.7,2940.4,2.6521]
[1644752539201,1.228,2941.7,2940.5,3.03750335]
[1644752539413,1.228,2941.7,2940.6,1.02004]
[1644752539701,0.84497206,2941.5,2940.6,1.32004]
[1644752540105,0.84497206,2941.5,2940.7,0.3]
[1644752540438,0.84497206,2941.5,2940.8,0.17]
[1644752540759,3.39787798,2941.4,2940.6,0.3]
[1644752540957,0.84497206,2941.5,2940.6,0.3]
[1644752541156,3.39274949,2941.4,2940.4,1.7821]
[1644752541621,0.01094008,2941.2,2940.9,0.01094155]
[1644752542360,4.24497206,2941.5,2940.4,2.7821]
[1644752542570,0.01094018,2941.2,2940.9,0.01094146]
[1644752543566,0.01094018,2941.2,2940.7,1.02003]
[1644752543567,4.24497206,2941.5,2940.8,0.17]
[1644752543857,0.01094018,2941.2,2940.9,0.01094146]
[1644752544703,0.01094018,2941.2,2940.8,0.17]
[1644752544704,0.004,2941.2,2940.8,0.17]
[1644752544903,0.01494018,2941.2,2940.9,0.01094146]
[1644752545922,0.01494018,2941.2,2940.8,0.17]
[1644752545923,0.01319079,2941.1,2940.8,0.17]
[1644752546121,0.01319079,2941.1,2940.9,0.01094146]
[1644752547124,0.01319079,2941.1,2940.3,3.8816011]
[1644752547311,0.01319079,2941.1,2940.4,1.7821]
[1644752547512,0.01319079,2941.1,2940.9,0.01094155]
[1644752548362,0.01319079,2941.1,2940.5,0.17]
[1644752548565,0.01319079,2941.1,2940.9,0.01094155]
[1644752549552,0.98759241,2941.0,2940.4,1.95213]
[1644752549753,0.98759241,2941.0,2940.9,0.01094155]
[1644752550557,4.41551331,2941.0,2940.9,0.01094155]
[1644752550757,0.98759241,2941.0,2940.3,3.1958]
[1644752550956,1.0024127,2941.0,2940.8,0.01094163]
[1644752551170,5.0,2940.9,2940.8,0.01094163]
[1644752551372,6.17,2940.9,2940.8,0.01094163]
[1644752551605,1.17,2940.9,2940.8,0.01094163]
[1644752552001,1.17,2940.9,2940.0,3.5]
[1644752552204,0.17,2940.9,2940.0,3.5]
[1644752552917,0.17,2940.9,2940.0,0.6]
[1644752553100,0.17,2940.9,2940.0,3.30168161]
[1644752553301,0.17,2940.9,2940.0,0.3]
[1644752553509,0.17,2940.9,2940.3,0.01093698]
[1644752553902,1.0024127,2941.0,2940.3,0.01093698]
[1644752554403,1.0024127,2941.0,2940.1,0.0039167]
[1644752554602,1.0024127,2941.0,2940.5,0.01093665]
[1644752555002,0.17,2940.9,2940.5,0.01093665]
[1644752555256,0.174,2940.9,2940.5,0.01093665]
[1644752555451,0.174,2940.9,2940.1,0.0039167]
[1644752555651,0.88598849,2940.4,2940.1,0.0039167]
[1644752555861,0.01313917,2940.8,2940.1,0.04766952]
[1644752556268,0.01313917,2940.8,2940.1,0.34766952]
[1644752556452,0.01313917,2940.8,2940.1,0.34375282]
[1644752556753,0.01313917,2940.8,2940.2,0.0039167]
[1644752557009,1.19158561,2940.6,2940.3,0.00494891]
[1644752557953,1.19158561,2940.6,2939.7,0.0039167]
[1644752558253,1.19158561,2940.6,2940.3,0.00494891]
[1644752559129,1.19158561,2940.6,2939.8,0.0039167]
[1644752559601,1.19158561,2940.6,2940.3,0.01094292]
[1644752560406,1.19476012,2940.6,2939.8,0.0039167]
[1644752560606,1.19476012,2940.6,2940.3,0.01094292]
[1644752561208,0.01308754,2940.5,2940.3,0.01094292]
[1644752561607,0.01308754,2940.5,2939.8,0.0039167]
[1644752561807,0.01308754,2940.5,2940.3,0.01094301]
[1644752562865,0.01308754,2940.5,2939.8,0.1739167]
[1644752563051,0.01308754,2940.5,2940.3,0.01094301]
[1644752563853,3.41308754,2940.5,2940.3,0.01094301]
[1644752564056,3.41308754,2940.5,2940.0,0.0039167]
[1644752564252,3.41308754,2940.5,2940.3,0.01094301]
[1644752565055,3.41308754,2940.5,2940.2,3.60384943]
[1644752565253,3.41308754,2940.5,2940.2,3.90384943]
[1644752565461,3.41308754,2940.5,2940.3,0.01094301]
[1644752565727,3.41708754,2940.5,2940.3,0.01094301]
[1644752566510,3.41708754,2940.5,2940.2,0.4739167]
[1644752566700,3.41708754,2940.5,2940.3,0.01094301]
[1644752567101,3.41708754,2940.5,2940.3,0.31094301]
[1644752567497,3.41708754,2940.5,2940.3,0.3]
[1644752567697,3.41708754,2940.5,2940.3,0.31094301]
[1644752567959,3.41708754,2940.5,2940.3,0.01094301]
[1644752568104,3.41708754,2940.5,2940.3,0.31094301]
[1644752568303,3.41708754,2940.5,2940.3,0.01094301]
[1644752568700,3.41708754,2940.5,2940.3,1.82673542]
[1644752568900,3.41708754,2940.5,2940.4,3.88741706]
[1644752569103,3.41708754,2940.5,2940.4,4.48741706]
[1644752569300,3.41708754,2940.5,2940.4,5.48741706]
[1644752570357,3.41708754,2940.5,2940.4,1.6]
[1644752570559,3.41708754,2940.5,2940.4,0.6]
[1644752571163,3.41708754,2940.5,2940.4,0.3]
[1644752571557,3.41708754,2940.5,2940.3,0.01094292]
[1644752571761,3.41708754,2940.5,2940.3,0.31094292]
[1644752572370,3.41708754,2940.5,2940.3,0.3]
[1644752572575,3.41708754,2940.5,2940.3,0.01094301]
[1644752573561,3.41708754,2940.5,2940.2,0.0039167]
[1644752573762,3.41708754,2940.5,2940.3,0.01094301]
[1644752574801,3.41708754,2940.5,2940.2,0.0039167]
[1644752575000,3.41708754,2940.5,2940.3,0.01094301]
[1644752575922,3.41708754,2940.5,2940.2,1.1540767]
[1644752576125,3.41708754,2940.5,2940.2,1.4540767]
[1644752576328,3.41708754,2940.5,2940.3,0.01094301]
[1644752577220,3.41708754,2940.5,2940.2,0.0039167]
[1644752577405,3.41708754,2940.5,2939.9,4.10369712]
[1644752577406,3.41708754,2940.5,2940.3,0.01094301]
[1644752578453,3.41708754,2940.5,2940.1,0.0039167]
[1644752578654,3.41708754,2940.5,2940.3,0.01094301]
[1644752579557,3.41708754,2940.5,2940.1,0.0039167]
[1644752579763,3.41708754,2940.5,2940.3,0.01094301]
[1644752580762,3.41708754,2940.5,2940.1,0.0039167]
[1644752581165,3.41708754,2940.5,2940.3,0.01094301]
[1644752581999,3.41708754,2940.5,2940.1,0.0039167]
[1644752582199,3.41708754,2940.5,2940.3,0.01094301]
[1644752582600,3.41708754,2940.5,2940.3,0.31094301]
[1644752582800,3.41708754,2940.5,2940.3,4.29355164]
[1644752583001,3.41708754,2940.5,2940.4,3.09083109]
[1644752583200,3.41708754,2940.5,2940.4,4.09083109]
[1644752583799,3.41570632,2940.5,2940.4,4.09083109]
[1644752585657,3.41570632,2940.5,2940.4,1.0]
[1644752585864,3.41570632,2940.5,2940.3,3.30259991]
[1644752586659,3.41570632,2940.5,2940.4,1.0]
[1644752588460,3.41570632,2940.5,2940.3,0.31094292]
[1644752589319,3.41570632,2940.5,2940.3,0.3]
[1644752589519,3.41570632,2940.5,2940.3,0.31094301]
[1644752590522,3.41570632,2940.5,2940.3,0.3]
[1644752590721,3.41570632,2940.5,2940.3,0.01094301]
[1644752591722,3.41570632,2940.5,2940.3,0.3]
[1644752592339,3.41570632,2940.5,2940.4,0.3]
[1644752594356,3.41570632,2940.5,2940.4,3.34965143]
[1644752594558,3.41570632,2940.5,2940.4,3.64965143]
[1644752597414,3.41570632,2940.5,2940.2,0.0039167]
[1644752598210,3.41570632,2940.5,2939.6,0.8542367]
[1644752598409,3.41570632,2940.5,2939.7,0.0039167]
[1644752598808,3.41570632,2940.5,2939.7,1.0039167]
[1644752599009,4.60705589,2940.5,2939.8,0.0039167]
[1644752599409,4.60705589,2940.5,2940.0,0.01094464]
[1644752600010,4.60705589,2940.5,2940.0,0.01486134]
[1644752600455,4.60705589,2940.5,2940.1,0.01054608]
[1644752601266,4.60705589,2940.5,2939.8,0.0039167]
[1644752601723,4.60705589,2940.5,2940.2,0.010546]
[1644752602079,3.41570632,2940.5,2940.2,0.010546]
[1644752602662,3.41570632,2940.5,2940.1,3.3721664]
[1644752602866,3.41570632,2940.5,2940.2,0.01054591]
[1644752603755,3.41570632,2940.5,2940.1,3.6721664]
[1644752603756,3.41570632,2940.5,2940.1,3.8422064]
[1644752604014,3.41570632,2940.5,2940.2,0.01012515]
[1644752604829,3.4148045,2940.5,2940.1,3.8422064]
[1644752605210,3.4148045,2940.5,2940.2,0.01012515]
[1644752606059,3.4148045,2940.5,2940.1,3.8422064]
[1644752606417,3.4148045,2940.5,2940.2,0.01012515]
[1644752606817,3.40513124,2940.5,2940.2,0.01012515]
[1644752607214,3.40513124,2940.5,2940.1,3.8422064]
[1644752607612,3.40513124,2940.5,2940.2,0.01036165]
[1644752608454,3.40513124,2940.5,2940.1,3.8422064]
[1644752608856,3.40513124,2940.5,2940.2,0.01036165]
[1644752609656,3.40513124,2940.5,2940.1,0.0039167]
[1644752609858,3.40513124,2940.5,2940.1,3.02059832]
[1644752610068,3.40513124,2940.5,2940.2,0.01036165]
[1644752610860,3.41795685,2940.5,2940.1,0.3039167]
[1644752611064,3.41795685,2940.5,2940.2,0.01034919]
[1644752611258,3.41795685,2940.5,2940.2,1.03056919]
[1644752611702,3.41795685,2940.5,2940.2,1.63056919]
[1644752612110,3.41795685,2940.5,2940.2,1.62022]
[1644752612303,3.41795685,2940.5,2940.2,1.63056919]
[1644752612503,3.41795685,2940.5,2940.2,4.68403213]
[1644752613009,3.41795685,2940.5,2940.2,4.51400213]
[1644752613212,3.41795685,2940.5,2940.2,0.6]
[1644752613411,3.41795685,2940.5,2940.2,0.17]
[1644752613715,3.41795685,2940.5,2940.2,0.18034919]
[1644752614510,3.41795685,2940.5,2940.2,0.17]
[1644752614719,3.41795685,2940.5,2940.2,0.01035075]
[1644752615788,3.41795685,2940.5,2940.1,0.0039167]
[1644752615964,3.41795685,2940.5,2940.2,0.01035075]